[Event "55th Rubinstein Memorial-A 2019"]
[Site "Polanica-Zdroj"]
[Date "2019.08.19"]
[Round "3.16"]
[White "Wysocki, Mateusz"]
[Black "Niedbala, Bartlomiej"]
[Result "1-0"]
[ECO "B03"]
[WhiteElo "1786"]
[BlackElo "2169"]
[Annotator "NA"]
[PlyCount "113"]
[EventDate "2019.08.17"]
[EventType "swiss"]
[EventCountry "POL"]
[SourceTitle "playchess.com"]
[Source "ChessBase"]
[SourceQuality "1"]
[TimeControl "40/5400+30:1800+30"]

1. e4 {[%emt 0:00:00]} Nf6 {[%emt 0:00:00]} 2. e5 {[%emt 0:00:09]} Nd5 {[%emt 0:00:00]} 3. d4 {[%emt 0:00:11]} d6 {[%emt 0:00:00]} 4. c4 {[%emt 0:00:48]} Nb6 {[%emt 0:00:00]} 5. exd6 {[%emt 0:00:07]} cxd6 {[%emt 0:00:00]} 6. Nf3 {[%emt 0:02:21]} g6 {[%emt 0:00:19]} 7. Be2 {[%emt 0:01:44]} Bg7 {[%emt 0:00:08]} 8. O-O {[%emt 0:00:49]} O-O {[%emt 0:00:37]} 9. Be3 {[%emt 0:03:39]} Bg4 {[%emt 0:01:50]} 10. Nbd2 {[%emt 0:04:10]} Nc6 {[%emt 0:02:41]} 11. h3 {[%emt 0:04:43]} Bxf3 {[%emt 0:02:42]} 12. Nxf3 {[%emt 0:00:18]} d5 {[%emt 0:06:34]} 13. c5 {[%emt 0:03:04]} Nc4 {[%emt 0:05:20]} 14. Bxc4 {[%emt 0:05:20]} dxc4 {[%emt 0:00:02]} 15. Rc1 {[%emt 0:01:18]} Qd5 {[%emt 0:04:21]} 16. Qa4 {[%emt 0:04:03]} Rfd8 {[%emt 0:20:26]} 17. Rfd1 {[%emt 0:08:51]} Rd7 {[%emt 0:01:39]} 18. Qxc4 {[%emt 0:03:27]} Rad8 {[%emt 0:01:29]} 19. Rd2 {[%emt 0:06:38]} Qf5 {[%emt 0:11:22]} 20. Rcd1 {[%emt 0:03:39]} Rd5 {[%emt 0:01:51]} 21. b4 {[%emt 0:09:41]} a6 {[%emt 0:00:05]} 22. a4 {[%emt 0:00:52]} a5 {[%emt 0:00:50]} 23. bxa5 {[%emt 0:05:14]} Nxa5 24. Qb4 {[%emt 0:00:49]} Ra8 {[%emt 0:03:04]} 25. Qb5 {[%emt 0:05:18]} Bf6 {[%emt 0:02:11]} 26. Ne1 {[%emt 0:02:07]} Qc8 {[%emt 0:03:06]} 27. Nc2 {[%emt 0:04:25]} Nc6 {[%emt 0:01:45]} 28. Nb4 {[%emt 0:00:34]} Nxb4 {[%emt 0:00:41]} 29. Qxb4 {[%emt 0:00:05]} Qc6 {[%emt 0:00:38]} 30. a5 {[%emt 0:03:13]} e6 {[%emt 0:00:18]} 31. Rb1 {[%emt 0:00:54]} Rd7 {[%emt 0:00:17]} 32. Qb5 {[%emt 0:00:50]} Qc8 {[%emt 0:01:44]} 33. Rb4 {[%emt 0:01:58]} Ra6 {[%emt 0:01:36]} 34. Qa4 {[%emt 0:01:22]} Bd8 {[%emt 0:01:14]} 35. Rb5 {[%emt 0:00:06]} Qc6 {[%emt 0:00:08]} 36. Qb4 {[%emt 0:00:35]} Qc8 {[%emt 0:01:04]} 37. Rb2 {[%emt 0:01:31]} Ra7 {[%emt 0:00:37]} 38. Rb1 {[%emt 0:01:44]} Qc6 {[%emt 0:02:06]} 39. Bd2 {[%emt 0:02:51]} h5 {[%emt 0:01:30]} 40. Bc3 {[%emt 0:00:00]} Kh7 {[%emt 0:00:00]} 41. Qb3 {[%emt 0:05:32]} Kg8 {[%emt 0:05:31]} 42. Qc2 {[%emt 0:02:42]} Rd5 {[%emt 0:00:30]} 43. Qe2 {[%emt 0:06:42]} Rg5 {[%emt 0:01:19]} 44. f3 {[%emt 0:03:11]} Rd5 {[%emt 0:00:21]} 45. Qe4 {[%emt 0:04:36]} Bc7 {[%emt 0:00:52]} 46. Kf1 {[%emt 0:02:01]} Kh7 {[%emt 0:01:55]} 47. Qe3 {[%emt 0:00:23]} Rf5 {[%emt 0:01:38]} 48. R1b3 {[%emt 0:05:08]} Qd5 {[%emt 0:02:00]} 49. Kg1 {[%emt 0:02:23]} Rf4 {[%emt 0:03:14]} 50. c6 {[%emt 0:02:05]} Qxc6 {[%emt 0:04:55]} 51. d5 {[%emt 0:01:43]} Qa6 {[%emt 0:01:07]} 52. dxe6 {[%emt 0:04:31]} fxe6 {[%emt 0:00:16]} 53. Rc5 {[%emt 0:02:09]} b5 {[%emt 0:05:41]} 54. Rxc7+ {[%emt 0:00:20]} Rxc7 {[%emt 0:00:06]} 55. Qxf4 {[%emt 0:00:05]} Qa7+ {[%emt 0:00:28]} 56. Bd4 {[%emt 0:00:33]} Qxa5 {[%emt 0:00:04]} 57. Qe5 1-0

[Event "55th Rubinstein Memorial-A 2019"]
[Site "Polanica-Zdroj"]
[Date "2019.08.19"]
[Round "3.17"]
[White "Mikhaletz, Lubomir"]
[Black "Luberanski, Jakub"]
[Result "1-0"]
[ECO "A45"]
[WhiteElo "2412"]
[BlackElo "1996"]
[Annotator "NA"]
[PlyCount "93"]
[EventDate "2019.08.17"]
[EventType "swiss"]
[EventCountry "POL"]
[SourceTitle "playchess.com"]
[Source "ChessBase"]
[SourceQuality "1"]
[TimeControl "40/5400+30:1800+30"]

1. d4 {[%emt 0:00:00]} Nf6 {[%emt 0:00:00]} 2. Bg5 {[%emt 0:00:00]} c5 {[%emt 0:00:00]} 3. Bxf6 {[%emt 0:00:24]} gxf6 {[%emt 0:00:00]} 4. c3 {[%emt 0:00:27]} Qb6 {[%emt 0:00:58]} 5. Qd2 {[%emt 0:00:02]} d6 {[%emt 0:02:22]} 6. e3 {[%emt 0:01:26]} f5 {[%emt 0:01:48]} 7. Ne2 {[%emt 0:04:40]} Nd7 {[%emt 0:01:35]} 8. g3 {[%emt 0:00:47]} Nf6 {[%emt 0:00:15]} 9. Bg2 {[%emt 0:00:27]} Bg7 {[%emt 0:07:18]} 10. Na3 {[%emt 0:03:22]} h5 {[%emt 0:06:23]} 11. h4 {[%emt 0:01:41]} Ne4 {[%emt 0:02:33]} 12. Qc2 {[%emt 0:01:31]} d5 {[%emt 0:03:08]} 13. Nf4 {[%emt 0:01:01]} cxd4 {[%emt 0:05:58]} 14. exd4 {[%emt 0:03:31]} e6 {[%emt 0:03:25]} 15. Bf3 {[%emt 0:00:34]} Nf6 {[%emt 0:01:43]} 16. Qe2 {[%emt 0:00:53]} Kf8 {[%emt 0:07:30]} 17. Rb1 {[%emt 0:03:22]} Bd7 {[%emt 0:04:53]} 18. Bxh5 {[%emt 0:04:46]} Re8 {[%emt 0:05:37]} 19. Bf3 {[%emt 0:01:46]} e5 {[%emt 0:12:05]} 20. dxe5 {[%emt 0:03:55]} Ng4 {[%emt 0:00:19]} 21. Nxd5 {[%emt 0:07:57]} Qh6 {[%emt 0:01:57]} 22. O-O {[%emt 0:01:16]} Bxe5 {[%emt 0:06:37]} 23. Bxg4 {[%emt 0:04:16]} Bxg3 {[%emt 0:02:39]} 24. fxg3 {[%emt 0:00:27]} Rxe2 {[%emt 0:00:07]} 25. Bxe2 {[%emt 0:00:06]} Qd2 {[%emt 0:08:28]} 26. Nf4 {[%emt 0:00:59]} Qe3+ {[%emt 0:00:22]} 27. Kh2 {[%emt 0:01:21]} Bc6 {[%emt 0:01:01]} 28. Nc4 {[%emt 0:00:51]} Qe7 {[%emt 0:00:13]} 29. Bd3 {[%emt 0:04:57]} Be4 {[%emt 0:02:26]} 30. Rbd1 {[%emt 0:02:14]} Bxd3 {[%emt 0:08:02]} 31. Rxd3 {[%emt 0:00:39]} Rh6 {[%emt 0:01:28]} 32. Rf2 {[%emt 0:03:46]} b5 {[%emt 0:01:20]} 33. Ne3 {[%emt 0:01:00]} Qe4 {[%emt 0:00:37]} 34. Rd8+ {[%emt 0:01:58]} Kg7 {[%emt 0:01:11]} 35. Ned5 {[%emt 0:00:08]} a5 {[%emt 0:01:00]} 36. Re2 {[%emt 0:00:39]} Qf3 {[%emt 0:00:29]} 37. Ree8 {[%emt 0:02:33]} Qf2+ {[%emt 0:00:31]} 38. Ng2 {[%emt 0:00:06]} f4 {[%emt 0:00:44]} 39. Rg8+ {[%emt 0:02:17]} Kh7 {[%emt 0:00:05]} 40. Rh8+ {[%emt 0:00:00]} Kg6 {[%emt 0:00:00]} 41. Ndxf4+ {[%emt 0:01:36]} Kf5 {[%emt 0:00:12]} 42. Rxh6 {[%emt 0:01:24]} Qxb2 {[%emt 0:01:30]} 43. Rd5+ {[%emt 0:01:39]} Ke4 {[%emt 0:01:06]} 44. Rd4+ {[%emt 0:00:27]} Kf3 {[%emt 0:00:08]} 45. Rf6 {[%emt 0:00:24]} Qxa2 {[%emt 0:00:44]} 46. Nd3+ {[%emt 0:00:25]} Ke2 {[%emt 0:00:11]} 47. Nc1# {[%emt 0:00:12]} 1-0

[Event "55th Rubinstein Memorial-A 2019"]
[Site "Polanica-Zdroj"]
[Date "2019.08.19"]
[Round "3.18"]
[White "Hasterok, Mateusz"]
[Black "Psyk, Radoslaw"]
[Result "0-1"]
[ECO "A02"]
[WhiteElo "1911"]
[BlackElo "2326"]
[Annotator "NA"]
[PlyCount "54"]
[EventDate "2019.08.17"]
[EventType "swiss"]
[EventCountry "POL"]
[SourceTitle "playchess.com"]
[Source "ChessBase"]
[SourceQuality "1"]
[TimeControl "40/5400+30:1800+30"]

1. f4 {[%emt 0:00:00]} e5 {[%emt 0:03:03]} 2. fxe5 {[%emt 0:00:00]} d6 {[%emt 0:00:01]} 3. exd6 {[%emt 0:00:00]} Bxd6 {[%emt 0:00:09]} 4. Nf3 {[%emt 0:00:00]} g5 {[%emt 0:03:28]} 5. d4 {[%emt 0:00:00]} g4 {[%emt 0:00:47]} 6. Ng5 {[%emt 0:00:04]} f5 {[%emt 0:22:28]} 7. e4 {[%emt 0:00:04]} h6 {[%emt 0:13:47]} 8. e5 {[%emt 0:00:05]} hxg5 {[%emt 0:06:18]} 9. exd6 {[%emt 0:00:05]} cxd6 {[%emt 0:02:15]} 10. Bb5+ {[%emt 0:04:36]} Bd7 {[%emt 0:13:03]} 11. Qe2+ {[%emt 0:05:10]} Qe7 {[%emt 0:01:06]} 12. Bxd7+ {[%emt 0:01:14]} Kxd7 {[%emt 0:00:51]} 13. Qxe7+ {[%emt 0:00:11]} Nxe7 {[%emt 0:00:05]} 14. Bxg5 {[%emt 0:00:08]} Nbc6 {[%emt 0:00:07]} 15. c3 {[%emt 0:06:14]} Nd5 {[%emt 0:05:42]} 16. O-O {[%emt 0:03:30]} Rh5 {[%emt 0:01:04]} 17. Bf4 {[%emt 0:03:11]} Rah8 {[%emt 0:05:46]} 18. Nd2 {[%emt 0:03:51]} Nxf4 {[%emt 0:01:03]} 19. Rxf4 {[%emt 0:00:05]} Rxh2 {[%emt 0:00:02]} 20. Kf2 {[%emt 0:00:11]} Ne7 {[%emt 0:00:47]} 21. Nc4 {[%emt 0:07:45]} Ng6 {[%emt 0:07:04]} 22. Rxf5 {[%emt 0:00:24]} Nh4 {[%emt 0:00:01]} 23. Rf7+ {[%emt 0:00:31]} Ke6 {[%emt 0:00:02]} 24. Rxb7 {[%emt 0:01:47]} Rxg2+ {[%emt 0:00:11]} 25. Ke3 {[%emt 0:01:07]} Nf5+ {[%emt 0:00:21]} 26. Kf4 {[%emt 0:01:08]} Rf2+ {[%emt 0:00:21]} 27. Ke4 {[%emt 0:04:43]} d5+ {[%emt 0:00:09]} 0-1

[Event "55th Rubinstein Memorial-A 2019"]
[Site "Polanica-Zdroj"]
[Date "2019.08.19"]
[Round "3.19"]
[White "Goslawski, Michal"]
[Black "Wojcik, Wieslaw"]
[Result "1-0"]
[ECO "E68"]
[WhiteElo "2160"]
[BlackElo "1882"]
[Annotator "NA"]
[PlyCount "86"]
[EventDate "2019.08.17"]
[EventType "swiss"]
[EventCountry "POL"]
[SourceTitle "playchess.com"]
[Source "ChessBase"]
[SourceQuality "1"]
[TimeControl "40/5400+30:1800+30"]

1. g3 {[%emt 0:00:00]} g6 {[%emt 0:04:59]} 2. c4 {[%emt 0:00:00]} Bg7 {[%emt 0:00:05]} 3. d4 {[%emt 0:00:00]} Nf6 {[%emt 0:00:22]} 4. Nf3 {[%emt 0:00:03]} O-O {[%emt 0:01:04]} 5. Bg2 {[%emt 0:00:04]} d6 {[%emt 0:00:42]} 6. O-O {[%emt 0:00:08]} Nbd7 {[%emt 0:01:58]} 7. Nc3 {[%emt 0:00:10]} e5 {[%emt 0:00:59]} 8. e4 {[%emt 0:00:19]} Re8 {[%emt 0:05:28]} 9. h3 {[%emt 0:01:08]} h6 {[%emt 0:08:31]} 10. Rb1 {[%emt 0:01:55]} exd4 {[%emt 0:04:57]} 11. Nxd4 {[%emt 0:00:06]} Nc5 {[%emt 0:02:29]} 12. Re1 {[%emt 0:00:28]} a5 {[%emt 0:01:00]} 13. Ndb5 {[%emt 0:01:14]} Bd7 {[%emt 0:04:07]} 14. Bf4 {[%emt 0:06:37]} Ne6 {[%emt 0:08:47]} 15. Be3 {[%emt 0:00:59]} Bc6 {[%emt 0:02:47]} 16. Qc2 {[%emt 0:03:54]} Nd7 {[%emt 0:03:09]} 17. Rbd1 {[%emt 0:01:36]} Ndc5 {[%emt 0:05:23]} 18. f4 {[%emt 0:01:58]} Qc8 {[%emt 0:06:19]} 19. Qf2 {[%emt 0:06:07]} Nd7 {[%emt 0:01:25]} 20. Rf1 {[%emt 0:07:11]} f5 {[%emt 0:06:15]} 21. exf5 {[%emt 0:01:01]} gxf5 {[%emt 0:00:02]} 22. Nd5 {[%emt 0:03:58]} Ndc5 {[%emt 0:03:07]} 23. Rfe1 {[%emt 0:07:38]} Ne4 {[%emt 0:03:58]} 24. Qf3 {[%emt 0:02:09]} Qd7 {[%emt 0:01:57]} 25. a4 {[%emt 0:02:22]} Bxb2 {[%emt 0:03:53]} 26. g4 {[%emt 0:01:15]} N6c5 {[%emt 0:01:36]} 27. gxf5 {[%emt 0:04:12]} Bxd5 {[%emt 0:00:54]} 28. cxd5 {[%emt 0:00:50]} Nf6 {[%emt 0:04:48]} 29. Qf2 {[%emt 0:03:17]} Nxa4 {[%emt 0:00:45]} 30. Qg3+ {[%emt 0:09:12]} Kh8 {[%emt 0:01:17]} 31. Nd4 {[%emt 0:00:58]} Rg8 {[%emt 0:02:08]} 32. Qh4 {[%emt 0:01:08]} Qg7 {[%emt 0:02:27]} 33. Rd2 {[%emt 0:00:08]} Nxd5 {[%emt 0:02:56]} 34. Ne6 {[%emt 0:10:32]} Qf6 {[%emt 0:00:06]} 35. Ng5 {[%emt 0:00:11]} Nxe3 {[%emt 0:02:11]} 36. Rxe3 {[%emt 0:00:15]} Rae8 {[%emt 0:01:40]} 37. Re6 {[%emt 0:00:32]} Rxe6 {[%emt 0:00:41]} 38. fxe6 {[%emt 0:00:08]} Rg6 {[%emt 0:01:16]} 39. Be4 {[%emt 0:03:25]} Rg7 {[%emt 0:01:30]} 40. Kh1 {[%emt 0:00:00]} Kg8 {[%emt 0:00:00]} 41. Bd5 {[%emt 0:05:44]} Qe7 {[%emt 0:08:35]} 42. Qxh6 {[%emt 0:00:38]} Bc1 {[%emt 0:03:37]} 43. Nf7 Qf6 1-0

[Event "55th Rubinstein Memorial-A 2019"]
[Site "Polanica-Zdroj"]
[Date "2019.08.19"]
[Round "3.20"]
[White "Adamczyk, Zuzanna"]
[Black "Vanduyfhuys, Daria"]
[Result "0-1"]
[ECO "B32"]
[WhiteElo "1911"]
[BlackElo "2160"]
[Annotator "NA"]
[PlyCount "88"]
[EventDate "2019.08.17"]
[EventType "swiss"]
[EventCountry "POL"]
[SourceTitle "playchess.com"]
[Source "ChessBase"]
[SourceQuality "1"]
[TimeControl "40/5400+30:1800+30"]

1. e4 {[%emt 0:00:00]} c5 {[%emt 0:00:00]} 2. Nf3 {[%emt 0:00:00]} Nc6 {[%emt 0:00:00]} 3. d4 {[%emt 0:00:15]} cxd4 {[%emt 0:00:00]} 4. Nxd4 {[%emt 0:00:07]} e5 {[%emt 0:00:00]} 5. Nb5 {[%emt 0:00:29]} d6 {[%emt 0:00:01]} 6. N1c3 {[%emt 0:00:22]} a6 {[%emt 0:00:10]} 7. Na3 {[%emt 0:00:12]} Be7 {[%emt 0:00:06]} 8. Nc4 {[%emt 0:00:13]} b5 {[%emt 0:00:12]} 9. Ne3 {[%emt 0:00:16]} Nf6 {[%emt 0:00:11]} 10. Bd3 {[%emt 0:00:34]} O-O {[%emt 0:00:10]} 11. a4 {[%emt 0:00:21]} b4 {[%emt 0:01:13]} 12. Ncd5 {[%emt 0:00:34]} Be6 {[%emt 0:01:52]} 13. O-O {[%emt 0:03:08]} Nd7 {[%emt 0:02:00]} 14. c3 {[%emt 0:04:04]} bxc3 {[%emt 0:03:08]} 15. bxc3 {[%emt 0:04:34]} Nc5 {[%emt 0:00:14]} 16. Bc2 {[%emt 0:00:36]} Bg5 {[%emt 0:02:39]} 17. Ba3 {[%emt 0:07:29]} Ne7 {[%emt 0:07:23]} 18. Nc4 {[%emt 0:24:51]} Bxd5 {[%emt 0:15:46]} 19. exd5 {[%emt 0:00:36]} Rc8 {[%emt 0:01:22]} 20. a5 {[%emt 0:12:49]} g6 {[%emt 0:04:25]} 21. Nb6 {[%emt 0:02:07]} Rb8 {[%emt 0:02:51]} 22. Qe2 {[%emt 0:14:11]} Qc7 {[%emt 0:01:27]} 23. Bxc5 {[%emt 0:04:01]} Qxc5 {[%emt 0:13:10]} 24. Qxa6 {[%emt 0:11:13]} Qxc3 {[%emt 0:05:49]} 25. Qd3 {[%emt 0:00:44]} Qc7 {[%emt 0:01:56]} 26. Ba4 {[%emt 0:01:56]} Rfd8 {[%emt 0:00:51]} 27. Rfb1 {[%emt 0:02:27]} Rb7 {[%emt 0:04:45]} 28. Rb3 {[%emt 0:01:57]} Ra7 {[%emt 0:01:13]} 29. a6 {[%emt 0:01:03]} Rb8 {[%emt 0:03:14]} 30. Rab1 {[%emt 0:00:09]} Nc8 {[%emt 0:03:54]} 31. Nxc8 {[%emt 0:00:51]} Rxc8 {[%emt 0:00:03]} 32. Bc6 {[%emt 0:00:31]} Qa5 {[%emt 0:01:19]} 33. Ra3 {[%emt 0:01:52]} Qc5 {[%emt 0:00:11]} 34. g3 {[%emt 0:00:29]} e4 {[%emt 0:03:53]} 35. Qb5 {[%emt 0:01:21]} Qxa3 {[%emt 0:00:24]} 36. Bb7 {[%emt 0:00:36]} Rc1+ {[%emt 0:00:51]} 37. Kg2 {[%emt 0:00:28]} e3 {[%emt 0:01:30]} 38. Qb6 {[%emt 0:00:53]} e2 {[%emt 0:02:01]} 39. Rxc1 {[%emt 0:00:35]} Qxc1 {[%emt 0:00:09]} 40. Qxa7 {[%emt 0:00:00]} e1=Q {[%emt 0:00:00]} 41. Qb8+ {[%emt 0:00:43]} Kg7 {[%emt 0:00:15]} 42. a7 {[%emt 0:00:31]} Qcd2 {[%emt 0:00:27]} 43. Bc8 {[%emt 0:01:13]} Qexf2+ {[%emt 0:00:15]} 44. Kh3 {[%emt 0:00:11]} Qxh2+ {[%emt 0:00:06]} 0-1

[Event "55th Rubinstein Memorial-A 2019"]
[Site "Polanica-Zdroj"]
[Date "2019.08.19"]
[Round "3.21"]
[White "Grochol, Kamil"]
[Black "Szczurek, Krzysztof"]
[Result "1-0"]
[ECO "B01"]
[WhiteElo "1837"]
[BlackElo "2112"]
[Annotator "NA"]
[PlyCount "63"]
[EventDate "2019.08.17"]
[EventType "swiss"]
[EventCountry "POL"]
[SourceTitle "playchess.com"]
[Source "ChessBase"]
[SourceQuality "1"]
[TimeControl "40/5400+30:1800+30"]

1. e4 {[%emt 0:00:00]} d5 {[%emt 0:00:00]} 2. exd5 {[%emt 0:00:00]} Qxd5 {[%emt 0:00:00]} 3. d4 {[%emt 0:00:26]} Nf6 {[%emt 0:00:11]} 4. Nf3 {[%emt 0:00:56]} Bg4 {[%emt 0:00:29]} 5. Be2 {[%emt 0:01:07]} e6 {[%emt 0:00:27]} 6. Be3 {[%emt 0:05:44]} Be7 {[%emt 0:00:55]} 7. O-O {[%emt 0:02:56]} O-O {[%emt 0:00:30]} 8. c4 {[%emt 0:03:12]} Qd8 {[%emt 0:00:10]} 9. Nc3 {[%emt 0:06:29]} c6 {[%emt 0:03:05]} 10. h3 {[%emt 0:01:12]} Bh5 {[%emt 0:00:09]} 11. Ne5 {[%emt 0:09:40]} Bxe2 {[%emt 0:00:13]} 12. Qxe2 {[%emt 0:00:12]} Nbd7 {[%emt 0:00:30]} 13. Rfd1 {[%emt 0:02:48]} Bd6 {[%emt 0:05:40]} 14. f4 {[%emt 0:03:33]} Qe7 {[%emt 0:00:15]} 15. Rac1 {[%emt 0:10:21]} a6 {[%emt 0:07:28]} 16. Bf2 {[%emt 0:05:00]} c5 {[%emt 0:03:15]} 17. Bh4 {[%emt 0:02:29]} cxd4 {[%emt 0:02:07]} 18. Ne4 {[%emt 0:00:36]} Nc5 {[%emt 0:05:00]} 19. Nxf6+ {[%emt 0:14:18]} gxf6 {[%emt 0:00:05]} 20. Rxd4 {[%emt 0:03:53]} Rad8 {[%emt 0:02:00]} 21. Qg4+ {[%emt 0:09:29]} Kh8 {[%emt 0:00:10]} 22. Qh5 {[%emt 0:00:46]} Bxe5 {[%emt 0:17:36]} 23. fxe5 {[%emt 0:03:17]} Rxd4 {[%emt 0:00:06]} 24. Bxf6+ {[%emt 0:00:21]} Qxf6 {[%emt 0:00:04]} 25. exf6 {[%emt 0:00:06]} Nd7 {[%emt 0:00:03]} 26. Qe2 {[%emt 0:04:15]} Rg8 {[%emt 0:02:15]} 27. Rd1 {[%emt 0:01:08]} Rxd1+ {[%emt 0:00:07]} 28. Qxd1 {[%emt 0:00:07]} Nxf6 {[%emt 0:02:18]} 29. Qf3 {[%emt 0:00:22]} Rg6 {[%emt 0:00:08]} 30. Qxb7 {[%emt 0:00:18]} Kg7 {[%emt 0:00:05]} 31. c5 {[%emt 0:01:37]} Nd5 {[%emt 0:01:43]} 32. c6 {[%emt 0:00:20]} 1-0

[Event "55th Rubinstein Memorial-A 2019"]
[Site "Polanica-Zdroj"]
[Date "2019.08.19"]
[Round "3.22"]
[White "Bojczewski, Mateusz"]
[Black "Galuszka, Kamil"]
[Result "0-1"]
[ECO "C10"]
[WhiteElo "1836"]
[BlackElo "2058"]
[Annotator "NA"]
[PlyCount "82"]
[EventDate "2019.08.17"]
[EventType "swiss"]
[EventCountry "POL"]
[SourceTitle "playchess.com"]
[Source "ChessBase"]
[SourceQuality "1"]
[TimeControl "40/5400+30:1800+30"]

1. e4 {[%emt 0:00:00]} e6 {[%emt 0:00:00]} 2. d4 {[%emt 0:00:00]} d5 {[%emt 0:00:00]} 3. Nd2 {[%emt 0:00:23]} dxe4 {[%emt 0:00:00]} 4. Nxe4 {[%emt 0:00:08]} Nd7 {[%emt 0:00:02]} 5. Nf3 {[%emt 0:04:30]} Ngf6 {[%emt 0:00:09]} 6. Nxf6+ {[%emt 0:03:15]} Nxf6 {[%emt 0:00:17]} 7. Bg5 {[%emt 0:03:39]} Be7 {[%emt 0:01:21]} 8. Bc4 {[%emt 0:03:51]} O-O {[%emt 0:02:46]} 9. O-O {[%emt 0:00:56]} Nd5 {[%emt 0:05:26]} 10. Bxe7 {[%emt 0:00:16]} Nxe7 {[%emt 0:00:06]} 11. c3 {[%emt 0:00:52]} b6 {[%emt 0:00:34]} 12. Re1 {[%emt 0:05:46]} Bb7 {[%emt 0:05:23]} 13. Ne5 {[%emt 0:28:48]} Ng6 {[%emt 0:13:29]} 14. Nxg6 {[%emt 0:04:06]} hxg6 {[%emt 0:03:51]} 15. Qg4 {[%emt 0:01:29]} Qf6 {[%emt 0:03:09]} 16. Re3 {[%emt 0:03:25]} Rfd8 {[%emt 0:03:23]} 17. Rae1 {[%emt 0:05:38]} Bd5 {[%emt 0:03:07]} 18. Bxd5 {[%emt 0:01:33]} Rxd5 {[%emt 0:00:19]} 19. Re5 {[%emt 0:06:10]} Rad8 {[%emt 0:00:50]} 20. Rxd5 {[%emt 0:03:59]} Rxd5 {[%emt 0:00:06]} 21. Qg3 {[%emt 0:01:22]} Qd8 {[%emt 0:02:55]} 22. h3 {[%emt 0:04:33]} c5 {[%emt 0:07:48]} 23. dxc5 {[%emt 0:00:29]} Rxc5 {[%emt 0:00:04]} 24. Re5 {[%emt 0:01:41]} Rc6 {[%emt 0:01:53]} 25. Re1 {[%emt 0:06:58]} Rd6 {[%emt 0:00:09]} 26. Qe3 {[%emt 0:00:20]} Qd7 {[%emt 0:04:11]} 27. Qe4 {[%emt 0:02:43]} g5 {[%emt 0:01:48]} 28. Qa8+ {[%emt 0:02:42]} Kh7 {[%emt 0:00:07]} 29. Qe4+ {[%emt 0:02:22]} g6 {[%emt 0:02:29]} 30. Qg4 {[%emt 0:02:01]} Qd8 {[%emt 0:02:57]} 31. Qe4 {[%emt 0:00:56]} Kg7 {[%emt 0:00:49]} 32. Kf1 {[%emt 0:00:29]} Qd7 {[%emt 0:00:19]} 33. Qe5+ {[%emt 0:00:30]} f6 {[%emt 0:00:06]} 34. Qe4 {[%emt 0:00:24]} Kf7 {[%emt 0:02:32]} 35. Qe3 {[%emt 0:00:37]} e5 {[%emt 0:02:38]} 36. a3 {[%emt 0:00:30]} Ke6 {[%emt 0:05:20]} 37. Qe4 {[%emt 0:00:30]} Rd2 {[%emt 0:04:26]} 38. Qc4+ {[%emt 0:00:30]} Ke7 {[%emt 0:00:58]} 39. Re2 {[%emt 0:00:31]} Rxb2 {[%emt 0:03:12]} 40. Qg8 {[%emt 0:00:00]} Rb1+ {[%emt 0:00:00]} 41. Re1 {[%emt 0:01:14]} Qd3+ {[%emt 0:04:12]} 0-1

[Event "55th Rubinstein Memorial-A 2019"]
[Site "Polanica-Zdroj"]
[Date "2019.08.19"]
[Round "3.23"]
[White "Rosicki, Marcin"]
[Black "Jedynak, January"]
[Result "0-1"]
[ECO "C29"]
[WhiteElo "2042"]
[BlackElo "1822"]
[Annotator "NA"]
[PlyCount "66"]
[EventDate "2019.08.17"]
[EventType "swiss"]
[EventCountry "POL"]
[SourceTitle "playchess.com"]
[Source "ChessBase"]
[SourceQuality "1"]
[TimeControl "40/5400+30:1800+30"]

1. e4 e5 2. Nc3 Nf6 3. f4 d5 4. fxe5 Nxe4 5. Nf3 Be7 6. Qe2 f5 7. d3 Nxc3 8. bxc3 c5 9. Qf2 O-O 10. Be2 h6 11. O-O Be6 12. d4 Nc6 13. Rb1 Rb8 14. Bd2 c4 15. Ne1 Qa5 16. Bh5 g5 17. h4 Kg7 18. hxg5 hxg5 19. Bd1 Rh8 20. Nf3 Qd8 21. g3 Kg6 22. Be2 Qa5 23. Qe3 Qd8 24. Kf2 g4 25. Ne1 Rh2+ 26. Ng2 Qh8 27. Qf4 Qh3 28. Rg1 Nd8 29. Bf1 Nf7 30. Ke1 Bg5 31. Qxg5+ Nxg5 32. Nf4+ Kf7 33. Bxh3 Nf3+ 0-1

[Event "55th Rubinstein Memorial-A 2019"]
[Site "Polanica-Zdroj"]
[Date "2019.08.19"]
[Round "3.24"]
[White "Jeda, Maciej"]
[Black "Czarniecka, Aleksandra"]
[Result "0-1"]
[ECO "B54"]
[WhiteElo "1815"]
[BlackElo "2042"]
[Annotator "NA"]
[PlyCount "65"]
[EventDate "2019.08.17"]
[EventType "swiss"]
[EventCountry "POL"]
[SourceTitle "playchess.com"]
[Source "ChessBase"]
[SourceQuality "1"]
[TimeControl "40/5400+30:1800+30"]

1. e4 {[%emt 0:00:00]} c5 {[%emt 0:00:00]} 2. Nf3 {[%emt 0:00:00]} d6 {[%emt 0:00:00]} 3. d4 {[%emt 0:00:00]} cxd4 {[%emt 0:00:00]} 4. Nxd4 {[%emt 0:00:05]} Nf6 {[%emt 0:00:00]} 5. Bd3 {[%emt 0:00:26]} Nc6 {[%emt 0:01:01]} 6. Ne2 {[%emt 0:00:24]} g6 {[%emt 0:11:38]} 7. O-O {[%emt 0:05:10]} Bg7 {[%emt 0:00:32]} 8. c4 {[%emt 0:01:32]} O-O {[%emt 0:03:00]} 9. Nbc3 {[%emt 0:00:22]} Nd7 {[%emt 0:13:39]} 10. f4 {[%emt 0:04:25]} Nc5 {[%emt 0:03:08]} 11. Be3 {[%emt 0:02:13]} Nb4 {[%emt 0:08:44]} 12. Bb1 {[%emt 0:03:09]} Be6 {[%emt 0:02:06]} 13. b3 {[%emt 0:07:51]} Bg4 {[%emt 0:07:25]} 14. Bd4 {[%emt 0:04:28]} Bh6 {[%emt 0:10:14]} 15. h3 {[%emt 0:08:35]} Bxe2 {[%emt 0:01:49]} 16. Nxe2 {[%emt 0:01:24]} Nc6 {[%emt 0:03:11]} 17. Bc3 {[%emt 0:02:54]} e5 {[%emt 0:05:06]} 18. Kh2 {[%emt 0:25:59]} Ne6 {[%emt 0:04:03]} 19. f5 {[%emt 0:02:47]} Nf4 {[%emt 0:02:56]} 20. Nxf4 {[%emt 0:01:02]} Bxf4+ {[%emt 0:02:48]} 21. g3 {[%emt 0:02:10]} Be3 {[%emt 0:00:39]} 22. f6 {[%emt 0:02:59]} Bd4 {[%emt 0:00:55]} 23. Bxd4 {[%emt 0:01:57]} Nxd4 {[%emt 0:00:14]} 24. Qd2 {[%emt 0:02:23]} Kh8 {[%emt 0:01:33]} 25. Bd3 {[%emt 0:01:05]} a5 {[%emt 0:04:54]} 26. Kg2 {[%emt 0:02:04]} Rg8 {[%emt 0:01:00]} 27. h4 {[%emt 0:05:17]} Qc8 {[%emt 0:02:46]} 28. Rf2 {[%emt 0:01:28]} Qg4 {[%emt 0:01:40]} 29. Rh1 {[%emt 0:06:55]} g5 {[%emt 0:00:54]} 30. hxg5 {[%emt 0:02:19]} Rxg5 {[%emt 0:00:23]} 31. Kf1 {[%emt 0:01:57]} Rg6 32. Be2 Qxe4 33. Rfh2 0-1